[Event "5th EKA IIFL Investment 2019"]
[Site "Mumbai"]
[Date "2019.12.31"]
[Round "2.12"]
[White "Mirzoev, Azer"]
[Black "Thakur, Akash"]
[Result "1-0"]
[ECO "D11"]
[WhiteElo "2457"]
[BlackElo "2300"]
[Annotator "ChessBase"]
[PlyCount "181"]
[EventDate "2019.12.30"]
[EventType "swiss"]
[EventCountry "IND"]
[SourceTitle "playchess.com"]
[Source "ChessBase"]
[SourceQuality "1"]
[TimeControl "40/5400+30:1800+30"]

1. d4 {[%emt 0:02:02]} d5 {[%emt 0:00:00]} 2. c4 {[%emt 0:00:08]} c6 {[%emt 0:00:00]} 3. Nf3 {[%emt 0:00:17]} Nf6 {[%emt 0:00:00]} 4. Qc2 {[%emt 0:00:03]} dxc4 {[%emt 0:01:14]} 5. Qxc4 {[%emt 0:00:04]} Bf5 {[%emt 0:00:27]} 6. g3 {[%emt 0:00:05]} e6 {[%emt 0:00:14]} 7. Bg2 {[%emt 0:00:02]} Nbd7 {[%emt 0:00:17]} 8. O-O {[%emt 0:00:06]} Be7 {[%emt 0:01:16]} 9. Nbd2 {[%emt 0:00:10]} O-O {[%emt 0:05:45]} 10. Qb3 {[%emt 0:00:27]} Qb6 {[%emt 0:01:00]} 11. Nc4 {[%emt 0:00:14]} Qxb3 {[%emt 0:11:35]} 12. axb3 {[%emt 0:00:32]} Be4 {[%emt 0:01:38]} 13. Bf4 {[%emt 0:02:37]} Nd5 {[%emt 0:04:19]} 14. Bd6 {[%emt 0:00:29]} a6 {[%emt 0:17:30]} 15. Bxe7 {[%emt 0:01:06]} Nxe7 {[%emt 0:01:29]} 16. Nd6 {[%emt 0:03:06]} Bxf3 {[%emt 0:01:16]} 17. Bxf3 {[%emt 0:00:08]} Rab8 {[%emt 0:08:52]} 18. Nc4 {[%emt 0:05:19]} Nd5 {[%emt 0:03:43]} 19. Rfd1 {[%emt 0:04:12]} Nc7 {[%emt 0:02:25]} 20. e3 {[%emt 0:00:28]} Rfd8 {[%emt 0:01:48]} 21. Kg2 {[%emt 0:00:29]} Kf8 {[%emt 0:01:45]} 22. h4 {[%emt 0:00:20]} Ke7 {[%emt 0:00:56]} 23. Rac1 {[%emt 0:00:26]} Nf6 {[%emt 0:06:41]} 24. Ne5 {[%emt 0:03:07]} Nfd5 {[%emt 0:01:32]} 25. Nd3 {[%emt 0:00:52]} Nb5 {[%emt 0:02:22]} 26. Nc5 {[%emt 0:00:14]} Nf6 {[%emt 0:07:32]} 27. h5 {[%emt 0:01:34]} h6 {[%emt 0:00:20]} 28. Be2 {[%emt 0:02:08]} Nc7 {[%emt 0:00:26]} 29. g4 {[%emt 0:01:13]} Nd7 {[%emt 0:01:34]} 30. Nd3 {[%emt 0:00:07]} f6 {[%emt 0:02:18]} 31. Nf4 {[%emt 0:04:46]} Nd5 {[%emt 0:05:30]} 32. Ng6+ {[%emt 0:00:06]} Ke8 {[%emt 0:00:27]} 33. Bd3 {[%emt 0:01:20]} Nf8 {[%emt 0:01:26]} 34. Nh4 {[%emt 0:00:32]} Rbc8 {[%emt 0:03:50]} 35. Kf1 {[%emt 0:00:41]} Rc7 {[%emt 0:02:00]} 36. Ke2 {[%emt 0:00:58]} Rdc8 {[%emt 0:01:11]} 37. Be4 {[%emt 0:00:54]} Rd8 {[%emt 0:01:44]} 38. f4 {[%emt 0:00:44]} Ne7 {[%emt 0:01:32]} 39. Nf3 {[%emt 0:02:15]} Nd7 {[%emt 0:00:47]} 40. Rg1 {[%emt 0:00:00]} Rdc8 {[%emt 0:00:00]} 41. Nd2 {[%emt 0:03:11]} Kf8 {[%emt 0:16:40]} 42. Nc4 {[%emt 0:01:45]} b5 {[%emt 0:01:38]} 43. Nd6 {[%emt 0:11:38]} Rd8 {[%emt 0:00:13]} 44. Bg2 {[%emt 0:00:42]} f5 {[%emt 0:07:55]} 45. gxf5 {[%emt 0:01:37]} Nf6 {[%emt 0:00:05]} 46. Ne4 {[%emt 0:00:24]} Nxe4 {[%emt 0:00:33]} 47. Bxe4 {[%emt 0:00:06]} exf5 {[%emt 0:00:15]} 48. Bf3 {[%emt 0:02:05]} Rd6 {[%emt 0:06:02]} 49. Rc5 {[%emt 0:04:40]} Rb7 {[%emt 0:00:25]} 50. Rgc1 {[%emt 0:05:42]} Rb6 {[%emt 0:00:01]} 51. Re5 {[%emt 0:00:25]} Rb7 {[%emt 0:02:06]} 52. b4 {[%emt 0:00:23]} Rb8 {[%emt 0:00:17]} 53. Kf2 {[%emt 0:02:42]} Rb6 {[%emt 0:00:05]} 54. Ke1 {[%emt 0:06:03]} Kf7 {[%emt 0:00:28]} 55. Bd1 {[%emt 0:01:37]} Kf6 {[%emt 0:01:24]} 56. Bb3 {[%emt 0:00:58]} Rb8 {[%emt 0:00:23]} 57. Ke2 {[%emt 0:01:06]} g5 {[%emt 0:00:29]} 58. hxg6 {[%emt 0:00:06]} Nxg6 {[%emt 0:00:07]} 59. Rh1 {[%emt 0:01:46]} Rh8 {[%emt 0:00:02]} 60. Kf3 {[%emt 0:06:31]} Ne7 {[%emt 0:00:43]} 61. Ra1 {[%emt 0:05:49]} Ra8 {[%emt 0:00:22]} 62. Rc1 {[%emt 0:02:39]} Rh8 {[%emt 0:00:54]} 63. Kg2 {[%emt 0:02:41]} Rhd8 {[%emt 0:00:32]} 64. Kh3 {[%emt 0:00:47]} Nd5 {[%emt 0:00:54]} 65. Rc5 {[%emt 0:02:26]} Kg6 {[%emt 0:00:40]} 66. Bxd5 {[%emt 0:02:31]} cxd5 {[%emt 0:00:06]} 67. Kh4 {[%emt 0:00:06]} R8d7 {[%emt 0:00:48]} 68. Rc1 {[%emt 0:00:38]} Kf6 {[%emt 0:00:38]} 69. Rg1 {[%emt 0:00:09]} Rc6 {[%emt 0:00:30]} 70. Kh5 {[%emt 0:00:09]} Rc2 {[%emt 0:00:30]} 71. Rg6+ {[%emt 0:00:35]} Kf7 {[%emt 0:00:01]} 72. Rxf5+ {[%emt 0:01:52]} Ke8 {[%emt 0:00:07]} 73. Rg8+ {[%emt 0:00:28]} Ke7 {[%emt 0:00:01]} 74. Rg7+ {[%emt 0:00:12]} Ke6 {[%emt 0:00:15]} 75. Re5+ {[%emt 0:00:24]} Kd6 {[%emt 0:00:01]} 76. Rxd7+ {[%emt 0:01:10]} Kxd7 {[%emt 0:00:03]} 77. Rxd5+ {[%emt 0:00:07]} Ke6 {[%emt 0:00:02]} 78. Re5+ {[%emt 0:00:21]} Kf6 {[%emt 0:00:11]} 79. d5 {[%emt 0:04:19]} Rxb2 80. e4 {[%emt 0:00:00]} Rxb4 {[%emt 0:01:09]} 81. Re6+ Kf7 {[%emt 0:01:01]} 82. f5 {[%emt 0:00:18]} a5 {[%emt 0:00:12]} 83. d6 {[%emt 0:00:20]} a4 {[%emt 0:01:45]} 84. e5 {[%emt 0:00:28]} Rd4 {[%emt 0:01:55]} 85. Re7+ {[%emt 0:00:38]} Kf8 {[%emt 0:00:09]} 86. f6 {[%emt 0:05:49]} a3 {[%emt 0:00:07]} 87. Ra7 {[%emt 0:01:14]} Rd5 {[%emt 0:01:28]} 88. Kg6 {[%emt 0:01:47]} Rxe5 {[%emt 0:00:13]} 89. Ra8+ {[%emt 0:00:17]} Re8 {[%emt 0:00:15]} 90. Rxe8+ {[%emt 0:00:44]} Kxe8 {[%emt 0:00:02]} 91. f7+ {[%emt 0:00:08]} 1-0

[Event "5th EKA IIFL Investment 2019"]
[Site "Mumbai"]
[Date "2019.12.31"]
[Round "2.14"]
[White "Sardana, Rishi"]
[Black "Nitish, Belurkar"]
[Result "1/2-1/2"]
[ECO "A05"]
[WhiteElo "2428"]
[BlackElo "2294"]
[Annotator "ChessBase"]
[PlyCount "128"]
[EventDate "2019.12.30"]
[EventType "swiss"]
[EventCountry "IND"]
[SourceTitle "playchess.com"]
[Source "ChessBase"]
[SourceQuality "1"]
[TimeControl "40/5400+30:1800+30"]

1. Nf3 {[%emt 0:00:00]} Nf6 {[%emt 0:00:00]} 2. g3 {[%emt 0:00:00]} g6 {[%emt 0:00:45]} 3. Bg2 {[%emt 0:00:12]} Bg7 {[%emt 0:00:04]} 4. d4 {[%emt 0:00:30]} d6 {[%emt 0:00:09]} 5. b3 {[%emt 0:00:40]} O-O {[%emt 0:01:15]} 6. Bb2 {[%emt 0:00:05]} e5 {[%emt 0:07:32]} 7. dxe5 {[%emt 0:00:06]} Ng4 {[%emt 0:00:20]} 8. c4 {[%emt 0:07:17]} Nxe5 {[%emt 0:06:31]} 9. Nc3 {[%emt 0:05:23]} Nxf3+ {[%emt 0:04:08]} 10. Bxf3 {[%emt 0:00:24]} Nc6 {[%emt 0:00:11]} 11. O-O {[%emt 0:00:33]} Bh3 {[%emt 0:03:37]} 12. Re1 {[%emt 0:00:10]} Qd7 {[%emt 0:00:24]} 13. Qd2 {[%emt 0:00:09]} Rad8 {[%emt 0:07:00]} 14. Rad1 {[%emt 0:01:56]} Rfe8 {[%emt 0:02:19]} 15. Nd5 {[%emt 0:03:15]} Ne5 {[%emt 0:00:33]} 16. Nf4 {[%emt 0:11:01]} c6 {[%emt 0:14:05]} 17. Nxh3 {[%emt 0:01:49]} Nxf3+ {[%emt 0:03:09]} 18. exf3 {[%emt 0:04:20]} Bxb2 {[%emt 0:01:30]} 19. Qxb2 {[%emt 0:00:02]} Qxh3 {[%emt 0:00:41]} 20. Qf6 {[%emt 0:09:07]} d5 {[%emt 0:12:10]} 21. cxd5 {[%emt 0:02:24]} cxd5 {[%emt 0:00:13]} 22. Rxe8+ {[%emt 0:05:47]} Rxe8 {[%emt 0:00:07]} 23. Qd4 {[%emt 0:00:00]} Qf5 {[%emt 0:05:09]} 24. Qxd5 {[%emt 0:19:28]} Re1+ {[%emt 0:02:59]} 25. Kg2 {[%emt 0:00:06]} Rxd1 {[%emt 0:00:19]} 26. Qxd1 {[%emt 0:00:06]} b6 {[%emt 0:00:57]} 27. Qd8+ {[%emt 0:00:11]} Kg7 {[%emt 0:00:02]} 28. Qd4+ {[%emt 0:00:07]} Kg8 {[%emt 0:00:06]} 29. Qa4 {[%emt 0:05:04]} a5 {[%emt 0:00:49]} 30. Qe8+ {[%emt 0:03:17]} Kg7 {[%emt 0:00:02]} 31. Qc6 {[%emt 0:02:15]} Qb1 {[%emt 0:01:27]} 32. Qc3+ {[%emt 0:00:13]} Kg8 {[%emt 0:00:08]} 33. a3 {[%emt 0:03:02]} Qd1 {[%emt 0:02:53]} 34. Qc4 {[%emt 0:02:47]} Qd6 {[%emt 0:00:39]} 35. b4 {[%emt 0:03:22]} h5 {[%emt 0:04:44]} 36. h4 {[%emt 0:01:27]} Qe7 {[%emt 0:03:14]} 37. Qb5 {[%emt 0:01:52]} axb4 {[%emt 0:00:09]} 38. axb4 {[%emt 0:00:01]} Qb7 {[%emt 0:01:45]} 39. Qe8+ {[%emt 0:00:00]} Kg7 {[%emt 0:00:00]} 40. Qe5+ {[%emt 0:00:00]} Kh7 {[%emt 0:00:00]} 41. b5 {[%emt 0:01:34]} Qd7 {[%emt 0:04:17]} 42. Qf6 {[%emt 0:01:40]} Qc7 {[%emt 0:00:14]} 43. f4 {[%emt 0:01:38]} Kg8 {[%emt 0:06:17]} 44. f5 {[%emt 0:02:46]} Kh7 {[%emt 0:00:27]} 45. Kf3 {[%emt 0:03:04]} Qa7 {[%emt 0:01:51]} 46. Qc6 {[%emt 0:00:55]} gxf5 {[%emt 0:05:16]} 47. Kf4 {[%emt 0:04:57]} Qa4+ {[%emt 0:00:22]} 48. Kxf5 {[%emt 0:03:32]} Qd4 {[%emt 0:00:40]} 49. f3 {[%emt 0:10:53]} Kg7 {[%emt 0:04:38]} 50. Qe8 {[%emt 0:06:06]} Qd3+ {[%emt 0:02:33]} 51. Kf4 {[%emt 0:00:51]} Qd2+ {[%emt 0:00:10]} 52. Qe3 {[%emt 0:02:36]} Qb4+ {[%emt 0:00:53]} 53. Qe4 {[%emt 0:00:11]} Qxb5 {[%emt 0:00:08]} 54. Qe5+ {[%emt 0:01:08]} Qxe5+ {[%emt 0:00:01]} 55. Kxe5 {[%emt 0:00:01]} Kg6 {[%emt 0:02:57]} 56. g4 {[%emt 0:03:13]} b5 {[%emt 0:01:15]} 57. Kd4 {[%emt 0:00:48]} b4 {[%emt 0:00:25]} 58. Kc4 {[%emt 0:00:15]} hxg4 {[%emt 0:00:30]} 59. fxg4 {[%emt 0:00:30]} f5 {[%emt 0:00:00]} 60. h5+ {[%emt 0:01:12]} Kg5 {[%emt 0:00:00]} 61. h6 Kxh6 {[%emt 0:00:00]} 62. gxf5 {[%emt 0:00:37]} Kg5 {[%emt 0:00:00]} 63. f6 Kxf6 {[%emt 0:00:00]} 64. Kxb4 {[%emt 0:00:11]} Ke5 1/2-1/2

[Event "5th EKA IIFL Investment 2019"]
[Site "Mumbai"]
[Date "2019.12.31"]
[Round "2.15"]
[White "Hesham, Abdelrahman"]
[Black "Vantika, Agrawal"]
[Result "1/2-1/2"]
[ECO "E67"]
[WhiteElo "2416"]
[BlackElo "2287"]
[Annotator "ChessBase"]
[PlyCount "77"]
[EventDate "2019.12.30"]
[EventType "swiss"]
[EventCountry "IND"]
[SourceTitle "playchess.com"]
[Source "ChessBase"]
[SourceQuality "1"]
[TimeControl "40/5400+30:1800+30"]

1. d4 {[%emt 0:00:00]} Nf6 {[%emt 0:00:34]} 2. c4 {[%emt 0:00:34]} d6 {[%emt 0:00:40]} 3. Nf3 {[%emt 0:01:09]} g6 {[%emt 0:00:47]} 4. Nc3 Bg7 {[%emt 0:00:50]} 5. g3 {[%emt 0:03:40]} O-O {[%emt 0:01:32]} 6. Bg2 Nbd7 {[%emt 0:04:03]} 7. O-O {[%emt 0:01:23]} e5 {[%emt 0:00:29]} 8. Qc2 {[%emt 0:00:37]} exd4 {[%emt 0:07:01]} 9. Nxd4 {[%emt 0:00:14]} Nb6 {[%emt 0:02:55]} 10. Rd1 {[%emt 0:03:52]} Nxc4 11. Ncb5 {[%emt 0:02:16]} a6 {[%emt 0:13:15]} 12. Nxc7 {[%emt 0:03:52]} Qxc7 {[%emt 0:01:51]} 13. b3 {[%emt 0:00:09]} Be6 {[%emt 0:27:40]} 14. Rb1 {[%emt 0:17:19]} Bd5 {[%emt 0:10:58]} 15. bxc4 {[%emt 0:00:53]} Bxg2 {[%emt 0:00:29]} 16. Kxg2 {[%emt 0:00:06]} Rfc8 {[%emt 0:05:35]} 17. Qb3 {[%emt 0:02:24]} Rab8 {[%emt 0:01:04]} 18. Ba3 {[%emt 0:02:57]} Ne4 {[%emt 0:03:07]} 19. f3 {[%emt 0:09:56]} Nc5 {[%emt 0:00:56]} 20. Qc2 {[%emt 0:01:56]} Qe7 {[%emt 0:08:23]} 21. Nb3 {[%emt 0:08:16]} b5 {[%emt 0:04:01]} 22. Nxc5 {[%emt 0:02:52]} dxc5 {[%emt 0:00:05]} 23. Rd5 {[%emt 0:00:07]} b4 24. Bc1 {[%emt 0:00:07]} f5 {[%emt 0:02:19]} 25. h4 Re8 {[%emt 0:01:30]} 26. Kf1 {[%emt 0:04:55]} Rb6 {[%emt 0:02:13]} 27. Bg5 {[%emt 0:02:32]} Bf6 {[%emt 0:00:16]} 28. Rbd1 {[%emt 0:01:04]} Bxg5 {[%emt 0:00:47]} 29. Rd7 {[%emt 0:00:14]} Qe5 {[%emt 0:00:33]} 30. hxg5 {[%emt 0:01:28]} Qxg3 {[%emt 0:00:22]} 31. Qb2 {[%emt 0:00:57]} Qh3+ {[%emt 0:00:15]} 32. Kg1 {[%emt 0:00:06]} Qg3+ {[%emt 0:00:08]} 33. Kf1 {[%emt 0:00:05]} Qh3+ {[%emt 0:00:39]} 34. Ke1 {[%emt 0:00:32]} Qh1+ {[%emt 0:01:09]} 35. Kf2 {[%emt 0:00:33]} Qh2+ {[%emt 0:00:28]} 36. Kf1 Qh1+ {[%emt 0:00:29]} 37. Kf2 {[%emt 0:00:14]} Qh2+ {[%emt 0:00:27]} 38. Kf1 Qh1+ 39. Kf2 1/2-1/2

[Event "5th EKA IIFL Investment 2019"]
[Site "Mumbai"]
[Date "2019.12.31"]
[Round "2.16"]
[White "Zysk, Robert"]
[Black "Deshpande, Aniruddha"]
[Result "1/2-1/2"]
[ECO "E63"]
[WhiteElo "2403"]
[BlackElo "2275"]
[Annotator "ChessBase"]
[PlyCount "100"]
[EventDate "2019.12.30"]
[EventType "swiss"]
[EventCountry "IND"]
[SourceTitle "playchess.com"]
[Source "ChessBase"]
[SourceQuality "1"]
[TimeControl "40/5400+30:1800+30"]

1. d4 Nf6 2. c4 g6 3. Nf3 Bg7 4. g3 O-O 5. Bg2 d6 6. O-O Nc6 7. Nc3 a6 8. d5 Na5 9. b3 c5 10. dxc6 Nxc6 11. Bf4 {[%emt 0:25:32]} Bf5 {[%emt 0:09:54]} 12. Rc1 {[%emt 0:03:20]} Qa5 {[%emt 0:03:12]} 13. Bd2 Rfc8 {[%emt 0:11:57]} 14. e4 {[%emt 0:20:08]} Bg4 {[%emt 0:07:56]} 15. h3 {[%emt 0:00:23]} Bxf3 {[%emt 0:02:15]} 16. Bxf3 {[%emt 0:00:43]} h5 {[%emt 0:02:44]} 17. Bg2 {[%emt 0:02:08]} Rab8 {[%emt 0:07:01]} 18. Nd5 {[%emt 0:13:40]} Qd8 {[%emt 0:01:45]} 19. Bc3 {[%emt 0:01:25]} e6 {[%emt 0:09:54]} 20. Ne3 {[%emt 0:03:03]} Ne8 {[%emt 0:02:20]} 21. Bxg7 {[%emt 0:01:54]} Kxg7 {[%emt 0:01:30]} 22. Qd2 {[%emt 0:02:06]} Qa5 {[%emt 0:05:19]} 23. Rfd1 {[%emt 0:06:30]} Qxd2 {[%emt 0:02:43]} 24. Rxd2 {[%emt 0:00:05]} e5 {[%emt 0:06:19]} 25. h4 {[%emt 0:05:41]} Nd4 {[%emt 0:01:34]} 26. Nc2 {[%emt 0:03:24]} Nxc2 {[%emt 0:01:11]} 27. Rcxc2 {[%emt 0:00:11]} Kf6 {[%emt 0:07:12]} 28. Bh3 {[%emt 0:01:28]} Rc7 {[%emt 0:00:41]} 29. f4 {[%emt 0:02:19]} Re7 {[%emt 0:04:24]} 30. f5 {[%emt 0:03:49]} Rc7 {[%emt 0:00:55]} 31. Rd5 {[%emt 0:03:53]} g5 {[%emt 0:06:38]} 32. hxg5+ {[%emt 0:00:41]} Kxg5 {[%emt 0:00:03]} 33. Rd1 {[%emt 0:01:34]} Rc6 {[%emt 0:04:10]} 34. Kf2 {[%emt 0:00:25]} Nf6 {[%emt 0:01:12]} 35. Kf3 {[%emt 0:00:13]} Rh8 {[%emt 0:00:58]} 36. Rcd2 {[%emt 0:00:26]} Ne8 {[%emt 0:01:11]} 37. Bf1 {[%emt 0:00:45]} Rh6 {[%emt 0:01:29]} 38. b4 {[%emt 0:00:49]} h4 {[%emt 0:00:18]} 39. Rh2 {[%emt 0:00:48]} hxg3 {[%emt 0:00:48]} 40. Rxh6 {[%emt 0:00:00]} Kxh6 {[%emt 0:00:00]} 41. Kxg3 {[%emt 0:00:49]} Nf6 {[%emt 0:04:55]} 42. Kf3 {[%emt 0:01:02]} Nh5 {[%emt 0:00:27]} 43. a4 {[%emt 0:04:54]} Kg5 {[%emt 0:15:01]} 44. b5 {[%emt 0:07:05]} axb5 {[%emt 0:00:07]} 45. axb5 {[%emt 0:00:07]} Rc8 {[%emt 0:02:28]} 46. Rxd6 {[%emt 0:02:42]} Ra8 {[%emt 0:01:27]} 47. c5 {[%emt 0:04:10]} Ra3+ {[%emt 0:00:41]} 48. Rd3 {[%emt 0:01:07]} Ra1 {[%emt 0:00:11]} 49. Kf2 {[%emt 0:05:24]} Rc1 {[%emt 0:01:08]} 50. Rd7 {[%emt 0:08:04]} Kf4 {[%emt 0:09:53]} 1/2-1/2

[Event "5th EKA IIFL Investment 2019"]
[Site "Mumbai"]
[Date "2019.12.31"]
[Round "2.17"]
[White "Mithil, Ajgaonkar"]
[Black "Moksh Amit Doshi"]
[Result "1-0"]
[ECO "A48"]
[WhiteElo "2278"]
[BlackElo "2399"]
[Annotator "RC"]
[PlyCount "99"]
[EventDate "2019.12.30"]
[EventType "swiss"]
[EventCountry "IND"]
[SourceTitle "playchess.com"]
[Source "ChessBase"]
[SourceQuality "1"]
[TimeControl "40/5400+30:1800+30"]

1. d4 {[%emt 0:00:00]} Nf6 {[%emt 0:00:00]} 2. Nf3 {[%emt 0:00:00]} g6 {[%emt 0:00:00]} 3. e3 {[%emt 0:02:14]} Bg7 {[%emt 0:00:00]} 4. Be2 {[%emt 0:00:05]} O-O {[%emt 0:00:30]} 5. O-O {[%emt 0:00:03]} d5 {[%emt 0:03:56]} 6. b3 {[%emt 0:00:09]} c5 {[%emt 0:01:17]} 7. c3 {[%emt 0:07:53]} Nc6 {[%emt 0:01:53]} 8. Bb2 {[%emt 0:00:12]} b6 {[%emt 0:05:50]} 9. Nbd2 {[%emt 0:11:35]} Bb7 {[%emt 0:00:15]} 10. c4 {[%emt 0:13:01]} cxd4 {[%emt 0:01:59]} 11. Nxd4 {[%emt 0:03:01]} Na5 {[%emt 0:08:51]} 12. Rc1 {[%emt 0:07:22]} Rc8 {[%emt 0:06:44]} 13. cxd5 {[%emt 0:18:07]} Nxd5 {[%emt 0:02:05]} 14. Bf3 {[%emt 0:16:09]} Qd7 {[%emt 0:02:46]} 15. Be2 {[%emt 0:13:54]} a6 {[%emt 0:04:30]} 16. Nc4 {[%emt 0:01:19]} Nxc4 {[%emt 0:00:51]} 17. bxc4 {[%emt 0:00:35]} Nf6 {[%emt 0:01:39]} 18. Qb3 {[%emt 0:00:19]} Qc7 {[%emt 0:00:50]} 19. Ba3 {[%emt 0:01:32]} Ne4 {[%emt 0:01:01]} 20. Qb4 {[%emt 0:01:42]} Rfd8 {[%emt 0:05:52]} 21. Rb1 {[%emt 0:00:45]} Bxd4 22. exd4 {[%emt 0:00:01]} Rxd4 {[%emt 0:02:19]} 23. Bb2 {[%emt 0:00:59]} Rdd8 {[%emt 0:01:24]} 24. Rfd1 {[%emt 0:00:30]} a5 {[%emt 0:01:23]} 25. Qa3 {[%emt 0:00:29]} Rxd1+ {[%emt 0:03:43]} 26. Rxd1 {[%emt 0:00:01]} Rd8 {[%emt 0:00:16]} 27. Rxd8+ {[%emt 0:00:42]} Qxd8 {[%emt 0:00:07]} 28. Qe3 {[%emt 0:00:02]} Qd6 {[%emt 0:02:28]} 29. h4 {[%emt 0:01:05]} Nc5 {[%emt 0:04:30]} 30. h5 {[%emt 0:00:12]} f6 {[%emt 0:02:43]} 31. hxg6 {[%emt 0:00:57]} hxg6 {[%emt 0:00:06]} 32. Bd4 {[%emt 0:00:30]} e5 {[%emt 0:00:59]} 33. Bb2 {[%emt 0:00:25]} Ne6 {[%emt 0:00:53]} 34. Bf3 {[%emt 0:00:37]} Bxf3 {[%emt 0:01:12]} 35. Qxf3 {[%emt 0:00:01]} Kg7 {[%emt 0:00:20]} 36. Qb7+ {[%emt 0:00:24]} Qc7 {[%emt 0:00:20]} 37. Qd5 {[%emt 0:00:06]} Nc5 {[%emt 0:03:01]} 38. Ba3 {[%emt 0:01:30]} Qd7 {[%emt 0:00:15]} 39. Qa8 {[%emt 0:00:26]} Ne6 {[%emt 0:00:16]} 40. Kh2 {[%emt 0:00:00]} g5 {[%emt 0:00:00]} 41. Qe4 {[%emt 0:26:02]} Qd4 {[%emt 0:05:19]} 42. Qc6 {[%emt 0:00:06]} Kf7 {[%emt 0:02:19]} 43. Qb7+ {[%emt 0:00:11]} Kg6 {[%emt 0:00:37]} 44. Qc8 {[%emt 0:04:10]} Nf4 {[%emt 0:03:23]} 45. Qg8+ {[%emt 0:00:31]} Kf5 {[%emt 0:00:07]} 46. Qh7+ {[%emt 0:01:43]} Ng6 {[%emt 0:00:07]} 47. Qh3+ {[%emt 0:00:43]} Qg4 {[%emt 0:01:38]} 48. Qd3+ {[%emt 0:00:01]} Qe4 {[%emt 0:01:37]} 49. g4+ {[%emt 0:00:22]} Kf4 {[%emt 0:00:09]} 50. Qg3# {[%emt 0:00:07]} 1-0

[Event "5th EKA IIFL Investment 2019"]
[Site "Mumbai"]
[Date "2019.12.31"]
[Round "2.18"]
[White "Mendonca, Leon Luke"]
[Black "Aaryan, Varshney"]
[Result "1-0"]
[ECO "D35"]
[WhiteElo "2398"]
[BlackElo "2269"]
[Annotator "RC"]
[PlyCount "187"]
[EventDate "2019.12.30"]
[EventType "swiss"]
[EventCountry "IND"]
[SourceTitle "playchess.com"]
[Source "ChessBase"]
[SourceQuality "1"]
[TimeControl "40/5400+30:1800+30"]

1. d4 Nf6 2. c4 e6 3. Nc3 d5 4. cxd5 exd5 5. Bg5 Be7 6. e3 c6 7. Bd3 Nbd7 8. Qc2 O-O 9. Nge2 h6 10. Bh4 {[%emt 0:03:15]} Re8 {[%emt 0:07:05]} 11. O-O {[%emt 0:00:33]} Ne4 {[%emt 0:01:23]} 12. Bxe7 {[%emt 0:00:21]} Qxe7 {[%emt 0:00:20]} 13. Rae1 {[%emt 0:03:10]} Ndf6 {[%emt 0:01:04]} 14. f3 {[%emt 0:03:35]} Nxc3 {[%emt 0:01:01]} 15. Nxc3 {[%emt 0:00:05]} Be6 {[%emt 0:01:40]} 16. Qf2 {[%emt 0:02:53]} Rad8 {[%emt 0:01:42]} 17. g4 {[%emt 0:05:15]} b6 {[%emt 0:03:14]} 18. Kh1 {[%emt 0:05:03]} c5 {[%emt 0:04:01]} 19. Rg1 {[%emt 0:00:40]} g6 {[%emt 0:01:19]} 20. Ne2 {[%emt 0:07:47]} Bc8 {[%emt 0:06:39]} 21. Nf4 {[%emt 0:22:37]} cxd4 {[%emt 0:10:04]} 22. exd4 {[%emt 0:00:52]} Qd6 {[%emt 0:01:17]} 23. Qd2 {[%emt 0:01:25]} Rxe1 {[%emt 0:02:03]} 24. Rxe1 {[%emt 0:00:04]} Re8 {[%emt 0:00:57]} 25. Rf1 {[%emt 0:12:39]} Kg7 {[%emt 0:03:58]} 26. Kg1 {[%emt 0:00:18]} Bd7 {[%emt 0:02:40]} 27. a3 {[%emt 0:01:12]} Qe7 {[%emt 0:04:49]} 28. Kg2 {[%emt 0:02:50]} Qd6 {[%emt 0:01:21]} 29. Ne2 {[%emt 0:02:51]} Bc6 {[%emt 0:03:23]} 30. Kg1 {[%emt 0:01:23]} Qe7 {[%emt 0:01:13]} 31. Nc3 {[%emt 0:02:26]} Qd6 {[%emt 0:17:33]} 32. Bc2 {[%emt 0:03:10]} Qb8 {[%emt 0:02:06]} 33. Kg2 {[%emt 0:01:25]} Qd6 {[%emt 0:01:07]} 34. Bb1 {[%emt 0:00:57]} Bd7 {[%emt 0:01:01]} 35. Kg1 {[%emt 0:03:23]} Re7 {[%emt 0:01:00]} 36. Bd3 {[%emt 0:00:38]} Re8 {[%emt 0:00:38]} 37. Ne2 {[%emt 0:01:00]} Re7 {[%emt 0:05:39]} 38. Qf4 {[%emt 0:06:24]} Qxf4 {[%emt 0:01:39]} 39. Nxf4 {[%emt 0:00:05]} g5 {[%emt 0:00:33]} 40. Ng2 {[%emt 0:00:00]} h5 {[%emt 0:00:00]} 41. h3 {[%emt 0:03:39]} hxg4 {[%emt 0:04:08]} 42. hxg4 {[%emt 0:00:09]} Re8 {[%emt 0:00:44]} 43. Kf2 {[%emt 0:01:50]} Rc8 {[%emt 0:03:27]} 44. Ne3 {[%emt 0:00:23]} Be6 {[%emt 0:00:38]} 45. Rh1 {[%emt 0:01:10]} Rh8 {[%emt 0:02:33]} 46. Re1 {[%emt 0:02:05]} Re8 {[%emt 0:04:25]} 47. Bb1 {[%emt 0:01:24]} Rh8 {[%emt 0:00:41]} 48. Kg3 {[%emt 0:00:42]} Rc8 {[%emt 0:01:52]} 49. Rh1 {[%emt 0:00:48]} Re8 {[%emt 0:05:24]} 50. Ba2 {[%emt 0:03:33]} Rc8 {[%emt 0:01:50]} 51. Bb3 {[%emt 0:01:02]} a5 {[%emt 0:00:50]} 52. Bc2 {[%emt 0:01:59]} Re8 {[%emt 0:00:46]} 53. Bb1 {[%emt 0:06:38]} Bd7 {[%emt 0:01:24]} 54. Kf2 {[%emt 0:00:15]} Rc8 {[%emt 0:01:10]} 55. Re1 {[%emt 0:00:51]} Kf8 {[%emt 0:01:15]} 56. Ba2 {[%emt 0:00:51]} Be6 {[%emt 0:00:47]} 57. Kg3 {[%emt 0:00:26]} Kg7 {[%emt 0:01:09]} 58. Bb1 {[%emt 0:01:29]} Rc7 {[%emt 0:05:07]} 59. f4 {[%emt 0:02:46]} gxf4+ {[%emt 0:01:02]} 60. Kxf4 {[%emt 0:00:02]} Ng8 {[%emt 0:00:42]} 61. Rh1 {[%emt 0:09:34]} Ne7 {[%emt 0:01:32]} 62. g5 {[%emt 0:00:40]} Rc8 {[%emt 0:02:00]} 63. Bd3 {[%emt 0:06:05]} Nc6 {[%emt 0:00:57]} 64. Nc2 {[%emt 0:03:33]} Rh8 {[%emt 0:01:47]} 65. Rxh8 Kxh8 {[%emt 0:00:06]} 66. Bb5 {[%emt 0:00:54]} Ne7 {[%emt 0:03:39]} 67. Ke5 {[%emt 0:00:22]} Kg7 {[%emt 0:02:13]} 68. Bd3 {[%emt 0:00:48]} Ng6+ {[%emt 0:00:34]} 69. Kd6 {[%emt 0:01:12]} Nf4 {[%emt 0:00:16]} 70. Bb5 {[%emt 0:00:25]} Nh3 {[%emt 0:00:28]} 71. Kc7 {[%emt 0:00:25]} Nxg5 {[%emt 0:00:25]} 72. Kxb6 {[%emt 0:00:04]} Bf5 {[%emt 0:02:13]} 73. Ne3 {[%emt 0:00:24]} Be4 {[%emt 0:00:05]} 74. Kxa5 {[%emt 0:00:46]} Ne6 {[%emt 0:00:20]} 75. Bc6 {[%emt 0:00:49]} Nxd4 {[%emt 0:00:13]} 76. Bxd5 {[%emt 0:00:06]} Bd3 {[%emt 0:00:28]} 77. Kb4 {[%emt 0:01:22]} Be2 {[%emt 0:00:24]} 78. Kc5 {[%emt 0:00:21]} Nf3 {[%emt 0:01:23]} 79. b4 {[%emt 0:00:36]} Ne5 {[%emt 0:02:46]} 80. b5 {[%emt 0:00:07]} Nd7+ {[%emt 0:00:13]} 81. Kb4 {[%emt 0:00:05]} Kf6 {[%emt 0:00:22]} 82. Nc4 {[%emt 0:00:58]} Ke7 {[%emt 0:00:42]} 83. a4 {[%emt 0:00:22]} f5 {[%emt 0:00:23]} 84. a5 {[%emt 0:00:11]} f4 {[%emt 0:01:08]} 85. a6 {[%emt 0:01:18]} Bxc4 {[%emt 0:00:20]} 86. Bxc4 {[%emt 0:00:42]} Kd6 {[%emt 0:01:24]} 87. a7 {[%emt 0:00:22]} Nb6 {[%emt 0:00:04]} 88. Be2 {[%emt 0:00:20]} Kc7 {[%emt 0:00:29]} 89. Bf3 {[%emt 0:00:02]} Kd6 {[%emt 0:00:20]} 90. Ka5 {[%emt 0:00:12]} Kc5 {[%emt 0:00:05]} 91. Ka6 {[%emt 0:00:07]} Na8 {[%emt 0:00:40]} 92. Bxa8 {[%emt 0:00:05]} f3 {[%emt 0:00:05]} 93. Bxf3 {[%emt 0:00:04]} Kb4 {[%emt 0:00:03]} 94. a8=Q {[%emt 0:00:06]} 1-0